fUST/lending_fUST_20260418
["ID","MTS","AMOUNT","RATE_DAILY","PERIOD"]
[420715571,1776485448489,-1558.0,8.767e-05,2]
[420715572,1776485448501,-500.0,8.767e-05,2]
[420715573,1776485448510,-500.0,8.767e-05,2]
[420715574,1776485448520,-663.84,8.767e-05,2]
[420715575,1776485448532,-643.2,8.767e-05,2]
[420715576,1776485448543,-192.19475681,8.767e-05,2]
[420715577,1776485448553,-1300.6,8.767e-05,2]
[420715578,1776485448562,-587.83,8.767e-05,2]
[420715579,1776485448573,-500.0,8.767e-05,2]
[420715580,1776485448582,-1139.0,8.767e-05,2]
[420715581,1776485448593,-644.79446246,8.79e-05,2]
[420715582,1776485448604,-870.54343643,8.82e-05,2]
[420715583,1776485448613,-668.65185757,8.845e-05,2]
[420715584,1776485448622,-693.3919763,8.9e-05,2]
[420715585,1776485448632,-693.0,8.9e-05,2]
[420715586,1776485448641,-455.6106944,8.917e-05,2]
[420715587,1776485448651,-2702.3544482,8.93e-05,2]
[420715588,1776485448659,-14536.5122794,8.93e-05,2]
[420715589,1776485448668,-719.04747942,8.955e-05,2]
[420715590,1776485448678,-461.30421799,8.973e-05,2]
[420715591,1776485448687,-1845.21687196,8.973e-05,2]
[420715592,1776485448697,-4151.73796191,8.973e-05,2]
[420715593,1776485448706,-460.58462238,8.973e-05,2]
[420715594,1776485448715,-359.36093163,8.973e-05,2]
[420715595,1776485448724,-1436.00628279,8.973e-05,2]
[420715596,1776485448733,-7373.48662036,8.973e-05,2]
[420715597,1776485448743,-11243.06973864,9e-05,2]
[420715598,1776485448752,-419.89183784,9e-05,2]
[420715599,1776485448761,-4199.12214278,9e-05,2]
[420715600,1776485448770,-151.0,9e-05,2]
[420715601,1776485448779,-151.0,9e-05,2]
[420715602,1776485448789,-151.0,9e-05,2]
[420715603,1776485448798,-9273.18827588,9e-05,2]
[420715604,1776485448807,-5000.0,9e-05,2]
[420715605,1776485448816,-5000.0,9e-05,2]
[420715606,1776485448825,-745.65223616,9.01e-05,2]
[420715607,1776485448835,-807.83375973,9.033e-05,2]
[420715608,1776485448847,-500.0,9.041e-05,2]
[420715609,1776485448857,-500.0,9.041e-05,2]
[420715610,1776485448868,-500.0,9.041e-05,2]
[420715611,1776485448878,-1808.07,9.041e-05,2]
[420715612,1776485448888,-500.0,9.041e-05,2]
[420715613,1776485448899,-570.9,9.041e-05,2]
[420715614,1776485448908,-500.0,9.041e-05,2]
[420715615,1776485448918,-500.0,9.041e-05,2]
[420715616,1776485448928,-543.83,9.041e-05,2]
[420715617,1776485448938,-703.87,9.041e-05,2]
[420715618,1776485448949,-500.0,9.041e-05,2]
[420715619,1776485448958,-649.07,9.041e-05,2]
[420715620,1776485448969,-929.43,9.041e-05,2]
[420715621,1776485448979,-500.0,9.041e-05,2]
[420715622,1776485448988,-500.0,9.041e-05,2]
[420715623,1776485448998,-908.99,9.041e-05,2]
[420715624,1776485449007,-500.0,9.041e-05,2]
[420715625,1776485449016,-500.0,9.041e-05,2]
[420715626,1776485449026,-500.0,9.041e-05,2]
[420715627,1776485449035,-658.64,9.041e-05,2]
[420715628,1776485449044,-500.0,9.041e-05,2]
[420715629,1776485449054,-500.0,9.041e-05,2]
[420715630,1776485449064,-503.07,9.041e-05,2]
[420715631,1776485449074,-2170.91,9.041e-05,2]
[420715632,1776485449085,-926.62,9.041e-05,2]
[420715633,1776485449096,-738.59,9.041e-05,2]
[420715634,1776485449107,-1083.25,9.041e-05,2]
[420715635,1776485449116,-840.96,9.041e-05,2]
[420715636,1776485449127,-5272.42,9.041e-05,2]
[420715637,1776485449137,-1076.51,9.041e-05,2]
[420715638,1776485449148,-500.0,9.041e-05,2]
[420715639,1776485449157,-694.91,9.041e-05,2]
[420715640,1776485449168,-600.85,9.041e-05,2]
[420715641,1776485449177,-2658.86,9.041e-05,2]
[420715642,1776485449187,-880.6,9.041e-05,2]
[420715643,1776485449196,-1423.58,9.041e-05,2]
[420715644,1776485449206,-1558.0,9.041e-05,2]
[420715645,1776485449216,-500.0,9.041e-05,2]
[420715646,1776485449225,-500.0,9.041e-05,2]
[420715647,1776485449234,-663.84,9.041e-05,2]
[420715648,1776485449244,-643.2,9.041e-05,2]
[420715649,1776485449253,-1300.6,9.041e-05,2]
[420715650,1776485449263,-587.83,9.041e-05,2]
[420715651,1776485449272,-500.0,9.041e-05,2]
[420715652,1776485449281,-1139.0,9.041e-05,2]
[420715653,1776485449291,-2230.315306,9.063e-05,2]
[420715654,1776485449300,-2500.0,9.064e-05,2]
[420715655,1776485449309,-2500.0,9.064e-05,2]
[420715656,1776485449319,-773.2413689,9.065e-05,2]
[420715657,1776485449328,-150.0,9.1e-05,2]
[420715658,1776485449337,-686.25454947,9.12e-05,2]
[420715659,1776485449346,-7244.23524473,9.123e-05,2]
[420715660,1776485449816,-2755.76475527,9.123e-05,2]
[420715661,1776485449826,-1000.0,9.298e-05,2]
[420715662,1776485449837,-183.00723308,9.315e-05,2]
[420715663,1776485449846,-500.0,9.315e-05,2]
[420715664,1776485449856,-500.0,9.315e-05,2]
[420715665,1776485449865,-500.0,9.315e-05,2]
[420715666,1776485449876,-1808.07,9.315e-05,2]
[420715667,1776485449885,-500.0,9.315e-05,2]
[420715668,1776485449895,-570.9,9.315e-05,2]
[420715669,1776485449905,-500.0,9.315e-05,2]
[420715670,1776485449915,-500.0,9.315e-05,2]
[420715671,1776485449926,-543.83,9.315e-05,2]
[420715672,1776485449936,-703.87,9.315e-05,2]
[420715673,1776485449946,-500.0,9.315e-05,2]
[420715674,1776485449955,-649.07,9.315e-05,2]
[420715675,1776485449965,-929.43,9.315e-05,2]
[420715676,1776485449974,-500.0,9.315e-05,2]
[420715677,1776485449985,-500.0,9.315e-05,2]
[420715678,1776485449995,-908.99,9.315e-05,2]
[420715679,1776485450005,-500.0,9.315e-05,2]
[420715680,1776485450014,-500.0,9.315e-05,2]
[420715681,1776485450024,-500.0,9.315e-05,2]
[420715682,1776485450034,-658.64,9.315e-05,2]
[420715683,1776485450043,-500.0,9.315e-05,2]
[420715684,1776485450054,-500.0,9.315e-05,2]
[420715685,1776485450063,-503.07,9.315e-05,2]
[420715686,1776485450072,-1515.77861106,9.315e-05,2]
[420715687,1776485452868,226.0,0.00024218,120]
[420715688,1776485518034,153.0,0.00024218,120]
[420715689,1776485570935,167.0,0.00024218,120]
[420715690,1776485632779,161.0,0.000246,120]
[420715691,1776485726206,-300.0,6.628e-05,2]
[420715692,1776485726227,-300.0,6.628e-05,2]
[420715693,1776485726249,-300.0,6.628e-05,2]
[420715694,1776485726272,-100.0,6.628e-05,2]
[420715695,1776485727213,-1000.0,6.628e-05,2]
[420715696,1776485727637,-100.0,6.628e-05,2]
[420715697,1776485727661,-300.0,6.628e-05,2]
[420715698,1776485727683,-514.0,6.628e-05,2]
[420715699,1776485727716,-86.0,6.629e-05,2]
[420715700,1776485728045,-1000.0,6.629e-05,2]
[420715701,1776485728356,-1000.0,6.629e-05,2]
[420715702,1776485728683,-1000.0,6.629e-05,2]
[420715703,1776485728974,-1000.0,6.629e-05,2]
[420715704,1776485729279,-914.0,6.629e-05,2]
[420715705,1776485729301,-86.0,6.673e-05,2]
[420715706,1776485729861,-414.0,6.673e-05,2]
[420715707,1776485729886,-258.58041825,6.696e-05,3]
[420715708,1776485729911,-327.41958175,6.696e-05,2]
[420715709,1776485729953,-172.58041825,6.696e-05,2]
[420715710,1776485729978,-500.0,6.696e-05,2]
[420715711,1776485730003,-327.41958175,6.696e-05,2]
[420715712,1776485730546,-172.58041825,6.696e-05,2]
[420715713,1776485730570,-500.0,6.696e-05,2]
[420715714,1776485730596,-327.41958175,6.696e-05,2]
[420715715,1776485730695,-172.58041825,6.696e-05,2]
[420715716,1776485730719,-500.0,6.696e-05,2]
[420715717,1776485730742,-327.41958175,6.696e-05,2]
[420715718,1776485731021,-172.58041825,6.696e-05,2]
[420715719,1776485731046,-500.0,6.696e-05,2]
[420715720,1776485731070,-327.41958175,6.696e-05,2]
[420715721,1776485731430,-172.58041825,6.696e-05,2]
[420715722,1776485731452,-500.0,6.696e-05,2]
[420715723,1776485731477,-327.41958175,6.696e-05,2]
[420715724,1776485731882,-172.58041825,6.696e-05,2]
[420715725,1776485731906,-500.0,6.696e-05,2]
[420715726,1776485731931,-327.41958175,6.696e-05,2]
[420715727,1776485732416,-172.58041825,6.696e-05,2]
[420715728,1776485732442,-500.0,6.696e-05,2]
[420715729,1776485732465,-327.41958175,6.696e-05,2]
[420715730,1776485732878,-172.58041825,6.696e-05,2]
[420715731,1776485732903,-500.0,6.696e-05,2]
[420715732,1776485732927,-327.41958175,6.696e-05,2]
[420715733,1776485733364,-172.58041825,6.696e-05,2]
[420715734,1776485733389,-500.0,6.696e-05,2]
[420715735,1776485733413,-327.41958175,6.696e-05,2]
[420715736,1776485733838,-172.58041825,6.696e-05,2]
[420715737,1776485733864,-500.0,6.696e-05,2]
[420715738,1776485733891,-259.98096203,6.696e-05,2]
[420715739,1776485733917,-67.43861972,6.696e-05,2]
[420715740,1776485734152,-432.56138028,6.696e-05,2]
[420715741,1776485734179,-500.0,6.696e-05,2]
[420715742,1776485734205,-67.43861972,6.696e-05,2]
[420715743,1776485734484,-500.51872415,6.696e-05,2]
[420715744,1776485734509,-499.48127585,6.696e-05,2]
[420715745,1776485734939,-0.51872415,6.696e-05,2]
[420715746,1776485734963,-500.0,6.696e-05,2]
[420715747,1776485734987,-499.48127585,6.696e-05,2]
[420715748,1776485735470,-0.51872415,6.696e-05,2]
[420715749,1776485735494,-500.0,6.696e-05,2]
[420715750,1776485735517,-499.48127585,6.696e-05,2]
[420715751,1776485735740,-0.51872415,6.696e-05,2]
[420715752,1776485735764,-500.0,6.696e-05,2]
[420715753,1776485735787,-499.48127585,6.696e-05,2]
[420715754,1776485736095,-0.51872415,6.696e-05,2]
[420715755,1776485736118,-999.48127585,6.697e-05,2]
[420715756,1776485736418,-1000.0,6.697e-05,2]
[420715757,1776485736756,-1000.0,6.697e-05,2]
[420715758,1776485737104,-1000.0,6.697e-05,2]
[420715759,1776485737540,-1000.0,6.697e-05,2]
[420715760,1776485737968,-1000.0,6.697e-05,2]
[420715761,1776485738299,-1000.0,6.697e-05,2]
[420715762,1776485738710,-1000.0,6.697e-05,2]
[420715763,1776485739023,-1000.0,6.697e-05,2]
[420715764,1776485739449,-1000.0,6.697e-05,2]
[420715765,1776485740296,-1000.0,6.697e-05,2]
[420715766,1776485740368,-1000.0,6.697e-05,2]
[420715767,1776485740607,-1000.0,6.697e-05,2]
[420715768,1776485741052,-1000.0,6.697e-05,2]
[420715769,1776485741495,-1000.0,6.697e-05,2]
[420715770,1776485741861,-1000.0,6.697e-05,2]
[420715771,1776485742215,-1000.0,6.697e-05,2]
[420715772,1776485742567,-1000.0,6.697e-05,2]
[420715773,1776485743014,-1000.0,6.697e-05,2]
[420715774,1776485743448,-1000.0,6.697e-05,2]
[420715775,1776485743879,-1000.0,6.697e-05,2]
[420715776,1776485744415,-1000.0,6.697e-05,2]
[420715777,1776485744979,-1000.0,6.697e-05,2]
[420715778,1776485745292,-1000.0,6.697e-05,2]
[420715779,1776485745837,-1000.0,6.697e-05,2]
[420715780,1776485746187,-1000.0,6.697e-05,2]
[420715781,1776485746772,-1000.0,6.697e-05,2]
[420715782,1776485747075,-1000.0,6.697e-05,2]
[420715783,1776485747520,-1000.0,6.697e-05,2]
[420715784,1776485747821,-1000.0,6.697e-05,2]
[420715785,1776485748281,-1000.0,6.697e-05,2]
[420715786,1776485748943,-1000.0,6.697e-05,2]
[420715787,1776485749220,-1000.0,6.697e-05,2]
[420715788,1776485749560,-1000.0,6.697e-05,2]
[420715789,1776485749869,-1000.0,6.697e-05,2]
[420715790,1776485750225,-1000.0,6.697e-05,2]
[420715791,1776485750756,-1000.0,6.697e-05,2]
[420715792,1776485751059,-1000.0,6.697e-05,2]
[420715793,1776485751612,-1000.0,6.697e-05,2]
[420715794,1776485752146,-1000.0,6.697e-05,2]
[420715795,1776485752686,-1000.0,6.697e-05,2]
[420715796,1776485752994,-1000.0,6.697e-05,2]
[420715797,1776485753334,-1000.0,6.697e-05,2]
[420715798,1776485753639,-1000.0,6.697e-05,2]
[420715799,1776485753974,-1000.0,6.697e-05,2]
[420715800,1776485754506,-1000.0,6.697e-05,2]
[420715801,1776485754813,-1000.0,6.697e-05,2]
[420715802,1776485755325,-1000.0,6.697e-05,2]
[420715803,1776485755545,-1000.0,6.697e-05,2]
[420715804,1776485755879,-1000.0,6.697e-05,2]
[420715805,1776485756496,-1000.0,6.697e-05,2]
[420715806,1776485757026,-1000.0,6.697e-05,2]
[420715807,1776485757583,-1000.0,6.697e-05,2]
[420715808,1776485757912,-1000.0,6.697e-05,2]
[420715809,1776485758697,-1000.0,6.697e-05,2]
[420715810,1776485759158,-1000.0,6.697e-05,2]
[420715811,1776485759730,-1000.0,6.697e-05,2]
[420715812,1776485760168,-1000.0,6.697e-05,2]
[420715813,1776485760936,-1000.0,6.697e-05,2]
[420715814,1776485761399,-1000.0,6.697e-05,2]
[420715815,1776485761919,-1000.0,6.697e-05,2]
[420715816,1776485762231,-1000.0,6.697e-05,2]
[420715817,1776485762769,-1000.0,6.697e-05,2]
[420715818,1776485763298,-1000.0,6.697e-05,2]
[420715819,1776485763857,-1000.0,6.697e-05,2]
[420715820,1776485764162,-1000.0,6.697e-05,2]
[420715821,1776485764681,-1000.0,6.697e-05,2]
[420715822,1776485765002,-1000.0,6.697e-05,2]
[420715823,1776485765549,-1000.0,6.697e-05,2]
[420715824,1776485765870,-1000.0,6.697e-05,2]
[420715825,1776485766339,-1000.0,6.697e-05,2]
[420715826,1776485766681,-1000.0,6.697e-05,2]
[420715827,1776485767158,-1000.0,6.697e-05,2]
[420715828,1776485767475,-1000.0,6.697e-05,2]
[420715829,1776485768013,-1000.0,6.697e-05,2]
[420715830,1776485768486,-1000.0,6.697e-05,2]
[420715833,1776485773902,-1000.0,6.697e-05,2]
[420715834,1776485774341,-1000.0,6.697e-05,2]
[420715835,1776485774788,-1000.0,6.697e-05,2]
[420715836,1776485775176,-1000.0,6.697e-05,2]
[420715837,1776485775617,-1000.0,6.697e-05,2]
[420715838,1776485775966,-1000.0,6.697e-05,2]
[420715839,1776485776381,-1000.0,6.697e-05,2]
[420715840,1776485781571,-1000.0,6.697e-05,2]
[420715841,1776485782680,-1000.0,6.697e-05,2]
[420715842,1776485783679,-1000.0,6.697e-05,2]
[420715843,1776485789542,-1000.0,6.697e-05,2]
[420715844,1776485924736,1331.93019083,0.00024176,120]
[420715845,1776485925081,1331.93019083,0.00024176,120]
[420715846,1776485926002,1331.93019083,0.00024176,120]
[420715847,1776485926296,1331.93019083,0.00024176,120]
[420715848,1776485926578,1331.93019083,0.00024176,120]
[420715849,1776485926867,1331.93019083,0.00024176,120]
[420715850,1776485927208,1331.93019083,0.00024176,120]
[420715851,1776485927492,1331.93019083,0.00024176,120]
[420715852,1776485927791,1331.93019083,0.00024176,120]
[420715853,1776485928082,1331.93019083,0.00024176,120]
[420715854,1776485928383,1331.93019083,0.00024176,120]
[420715855,1776485928712,1331.93019083,0.00024176,120]
[420715856,1776485929006,1331.93019083,0.00024176,120]
[420715857,1776485929635,1331.93019083,0.00024176,120]
[420715858,1776485931559,1331.93019083,0.00024176,120]
[420715859,1776485931868,1331.93019083,0.00024176,120]
[420715860,1776485932210,1331.93019083,0.00024176,120]
[420715861,1776485932654,1331.93019083,0.00024176,120]
[420715862,1776485932992,1331.93019083,0.00024176,120]
[420715863,1776485933336,1331.93019083,0.00024176,120]
[420715864,1776485933929,1331.93019083,0.00024176,120]
[420715865,1776486044517,1331.93019082,0.00024176,120]
[420715870,1776486133181,231.84,0.00024658,120]
[420715871,1776486145839,172.0,0.00022197,120]
[420715872,1776486147147,172.0,0.00023307,120]
[420715873,1776486289291,208.0,0.00024167,120]
[420715874,1776486314217,173.0,0.00024167,120]
[420715875,1776486395156,184.0,0.00024167,120]
[420715876,1776486520220,194.0,0.00024167,120]
[420715879,1776486609195,361.0,0.00024167,120]
[420715886,1776486632498,-4386.62311338,5.881e-05,2]
[420716032,1776486639508,-613.37688662,5.881e-05,2]
[420716033,1776486639517,-25.40587992,5.881e-05,2]
[420716034,1776486639569,-479.59412008,5.881e-05,2]
[420716035,1776486639579,-361.79610099,5.97e-05,2]
[420716036,1776486639589,-158.60977893,6e-05,2]
[420716056,1776486642446,-340.51684762,6e-05,2]
[420716073,1776486645479,-3416.54939978,6e-05,2]
[420716080,1776486646917,-11671.67593209,6e-05,2]
[420716081,1776486646928,-8826.27599286,6e-05,2]
[420716082,1776486646937,-377.83769847,6.5e-05,2]
[420716083,1776486646947,-819.62923776,6.5e-05,2]
[420716084,1776486646956,-839.46532282,6.5e-05,2]
[420716085,1776486646965,-395.745,6.563e-05,2]
[420716086,1776486646974,-1393.04697592,6.85e-05,2]
[420716087,1776486646984,-2789.57721516,6.95e-05,2]
[420716088,1776486646993,-318.669705,7.063e-05,2]
[420716089,1776486647002,-318.669705,7.36e-05,2]
[420716090,1776486647011,-318.669705,7.657e-05,2]
[420716091,1776486647021,-160.0,7.808e-05,2]
[420716092,1776486647031,-318.669705,7.955e-05,2]
[420716093,1776486647040,-426.91939917,7.97e-05,2]
[420716094,1776486647049,-500.0,8.093e-05,2]
[420716095,1776486647058,-500.0,8.093e-05,2]
[420716096,1776486647068,-500.0,8.093e-05,2]
[420716097,1776486647078,-13873.2385983,8.116e-05,2]
[420716098,1776486647089,-500.0,8.118e-05,2]
[420716099,1776486647099,-500.0,8.118e-05,2]
[420716100,1776486647108,-396.43970488,8.118e-05,2]
[420716101,1776486647117,-306.66455134,8.118e-05,2]
[420716102,1776486647127,-61421.11420502,8.119e-05,2]
[420716103,1776486647138,-479.84473846,8.119e-05,2]
[420716104,1776486647156,-2719.08223876,8.119e-05,2]
[420716105,1776486680166,215.0,0.00024167,120]
[420716106,1776486738700,153.0,0.00024167,120]
[420716108,1776487405700,1000.0,0.00024657,120]
[420716109,1776487425591,1000.0,0.00024657,120]
[420716110,1776487454450,1005.43141107,0.00024657,120]
[420716111,1776487555706,165.0,0.0002416,120]
[420716113,1776487624293,10000.0,0.00024658,120]
[420716114,1776487633266,175.0,0.0002416,120]
[420716115,1776487637127,5229.0,0.00024658,120]
[420716116,1776487724665,1190.51531206,0.0002416,120]
[420716117,1776487724950,1190.51531206,0.0002416,120]
[420716118,1776487725250,1190.51531206,0.0002416,120]
[420716119,1776487725548,1190.51531206,0.0002416,120]
[420716120,1776487725884,1190.51531206,0.0002416,120]
[420716121,1776487726176,1190.51531206,0.0002416,120]
[420716122,1776487726480,1190.51531206,0.0002416,120]
[420716123,1776487726777,1190.51531206,0.0002416,120]
[420716124,1776487727093,1190.51531206,0.0002416,120]
[420716125,1776487727385,1190.51531206,0.0002416,120]
[420716126,1776487727673,1190.51531206,0.0002416,120]
[420716127,1776487727986,1190.51531206,0.0002416,120]
[420716128,1776487728596,1190.51531206,0.0002416,120]
[420716129,1776487728644,1190.51531206,0.0002416,120]
[420716130,1776487728903,1190.51531206,0.0002416,120]
[420716131,1776487729210,1190.51531206,0.0002416,120]
[420716132,1776487729500,1190.51531206,0.0002416,120]
[420716133,1776487729839,1190.51531206,0.0002416,120]
[420716134,1776487730085,1190.51531206,0.0002416,120]
[420716135,1776487730696,1190.51531206,0.0002416,120]
[420716136,1776487730999,1190.51531206,0.0002416,120]
[420716137,1776487731290,1190.51531206,0.0002416,120]
[420716138,1776487731640,1190.51531206,0.0002416,120]
[420716139,1776487731928,1190.51531206,0.0002416,120]
[420716140,1776487732225,1190.51531206,0.0002416,120]
[420716141,1776487732554,1190.51531206,0.0002416,120]
[420716142,1776487732847,1190.51531206,0.0002416,120]
[420716143,1776487733137,1190.51531206,0.0002416,120]
[420716144,1776487733455,1190.51531206,0.0002416,120]
[420716145,1776487734051,1190.51531206,0.0002416,120]
[420716146,1776487734410,1190.51531206,0.0002416,120]
[420716147,1776487734723,1190.51531206,0.0002416,120]
[420716148,1776487735019,1190.51531206,0.0002416,120]
[420716149,1776487735328,1190.51531206,0.0002416,120]
[420716150,1776487735621,1190.51531206,0.0002416,120]
[420716151,1776487736223,1190.51531206,0.0002416,120]
[420716152,1776487736547,1190.51531206,0.0002416,120]
[420716153,1776487736858,1190.51531206,0.0002416,120]
[420716154,1776487737175,1190.51531206,0.0002416,120]
[420716155,1776487737470,1190.51531206,0.0002416,120]
[420716156,1776487737786,1190.51531206,0.0002416,120]
[420716157,1776487738103,1190.51531206,0.0002416,120]
[420716158,1776487738409,1190.51531206,0.0002416,120]
[420716159,1776487738928,1190.51531206,0.0002416,120]
[420716160,1776487738982,1190.51531206,0.0002416,120]
[420716161,1776487739273,1190.51531206,0.0002416,120]
[420716162,1776487739577,1190.51531206,0.0002416,120]
[420716163,1776487754987,185.0,0.0002416,120]
[420716183,1776487832708,-1200.0,5.026e-05,2]
[420716184,1776487832718,-5000.0,5.077e-05,2]
[420716185,1776487832728,-168.922842,5.128e-05,2]
[420716186,1776487832739,-351.14551074,5.255e-05,2]
[420716187,1776487832748,-300.0,5.605e-05,2]
[420716188,1776487832758,-300.0,5.606e-05,2]
[420716189,1776487832767,-300.0,5.606e-05,2]
[420716190,1776487832777,-300.0,5.606e-05,2]
[420716191,1776487832787,-300.0,5.606e-05,2]
[420716193,1776487832796,-300.0,5.606e-05,2]
[420716195,1776487832805,-300.0,5.606e-05,2]
[420716197,1776487832815,-300.0,5.606e-05,2]
[420716199,1776487832824,-300.0,5.606e-05,2]
[420716201,1776487832833,-300.0,5.606e-05,2]
[420716203,1776487832843,-300.0,5.606e-05,2]
[420716205,1776487832852,-300.0,5.606e-05,2]
[420716207,1776487832862,-300.0,5.606e-05,2]
[420716208,1776487832871,-300.0,5.606e-05,2]
[420716209,1776487832880,-300.0,5.606e-05,2]
[420716210,1776487832890,-300.0,5.606e-05,2]
[420716211,1776487832899,-209.74670545,5.781e-05,2]
[420716212,1776487832909,-1078.2250114,6.36e-05,2]
[420716213,1776487832919,-414.35170267,7.255e-05,2]
[420716214,1776487832928,-3116.6713394,7.399e-05,2]
[420716215,1776487832937,-159.7302089,7.399e-05,2]
[420716216,1776487832946,-3228.10370388,7.752e-05,2]
[420716217,1776487832957,-2150.738,7.756e-05,2]
[420716218,1776487832966,-160.0,7.806e-05,2]
[420716219,1776487832976,-500.0,7.893e-05,2]
[420716220,1776487832986,-500.0,7.893e-05,2]
[420716222,1776487832995,-500.0,7.893e-05,2]
[420716224,1776487833005,-500.0,7.915e-05,2]
[420716226,1776487833014,-314.17974951,7.915e-05,2]
[420716228,1776487833024,-500.0,7.915e-05,2]
[420716230,1776487833033,-500.0,7.915e-05,2]
[420716232,1776487833042,-500.0,7.915e-05,2]
[420716234,1776487833052,-500.0,7.915e-05,2]
[420716235,1776487833062,-500.0,7.915e-05,2]
[420716237,1776487833072,-500.0,7.915e-05,2]
[420716238,1776487833082,-10721.89123636,7.916e-05,2]
[420716431,1776487844427,343.0,0.00024161,120]
[420716437,1776487844543,1190.51531193,0.0002416,120]
[420716439,1776487844785,-256.2,7.916e-05,2]
[420716440,1776487844796,-1240.0,7.916e-05,2]
[420716441,1776487844840,-1437.57730057,7.916e-05,2]
[420716442,1776487844852,-2303.44,7.916e-05,2]
[420716449,1776487847062,-6455.12736062,7.916e-05,2]
[420716450,1776487847113,-2307.0,7.916e-05,2]
[420716451,1776487847272,-3507.8270746,7.916e-05,2]
[420716452,1776487864173,645.0,0.0002416,120]
[420716453,1776487926958,204.0,0.00024161,120]
[420716454,1776487984353,153.0,0.00024161,120]
[420716457,1776488349091,985.29,0.00024658,120]
[420716459,1776488462820,-581.60332794,7.527e-05,2]
[420716464,1776488794796,157.0,0.00024166,120]
[420716465,1776488867087,166.0,0.00024166,120]
[420716470,1776488989145,176.0,0.00024166,120]
[420716556,1776489038325,-2866.49295455,6.615e-05,2]
[420716557,1776489038338,-2133.50704545,6.615e-05,2]
[420716558,1776489038348,-514.0,6.615e-05,2]
[420716559,1776489038359,-238.4228833,6.751e-05,2]
[420716560,1776489038369,-850.5933041,7.33e-05,2]
[420716561,1776489038378,-181.35491962,7.411e-05,2]
[420716562,1776489038388,-338.86436647,7.452e-05,2]
[420716563,1776489038398,-1692.62720638,7.664e-05,2]
[420716564,1776489038407,-300.0,7.692e-05,2]
[420716565,1776489038417,-500.0,7.693e-05,2]
[420716566,1776489038426,-500.0,7.693e-05,2]
[420716567,1776489038436,-500.0,7.693e-05,2]
[420716568,1776489038445,-500.0,7.693e-05,2]
[420716569,1776489038454,-6177.6,7.7e-05,2]
[420716570,1776489038463,-2150.738,7.711e-05,2]
[420716571,1776489038472,-500.0,7.715e-05,2]
[420716572,1776489038681,-160.9917358,7.715e-05,2]
[420716574,1776489038693,-500.0,7.715e-05,2]
[420716576,1776489038703,-500.0,7.715e-05,2]
[420716578,1776489038712,-500.0,7.715e-05,2]
[420716580,1776489038722,-500.0,7.715e-05,2]
[420716582,1776489038731,-500.0,7.715e-05,2]
[420716584,1776489038741,-500.0,7.715e-05,2]
[420716585,1776489038751,-500.0,7.715e-05,2]
[420716587,1776489038761,-500.0,7.715e-05,2]
[420716589,1776489038771,-161.10509362,7.715e-05,2]
[420716591,1776489038780,-500.0,7.715e-05,2]
[420716592,1776489038790,-500.0,7.715e-05,2]
[420716593,1776489038800,-500.0,7.715e-05,2]
[420716594,1776489038810,-500.0,7.715e-05,2]
[420716595,1776489038820,-423.79774995,7.715e-05,2]
[420716596,1776489038830,-81821.82511992,7.716e-05,2]
[420716597,1776489038877,-16401.91742875,7.716e-05,2]
[420716598,1776489038888,-1053.44172772,7.716e-05,2]
[420716615,1776489040486,-1202.22657072,7.716e-05,2]
[420716616,1776489040498,-396.27900709,7.716e-05,2]
[420716617,1776489040538,-1175.66510949,7.716e-05,2]
[420716639,1776489046329,-3507.36748865,7.616e-05,2]
[420716651,1776489046439,-0.45958595,7.616e-05,2]
[420716653,1776489046448,-10254.76736062,7.716e-05,2]
[420716654,1776489046458,-1299.93323862,7.716e-05,2]
[420716660,1776489081329,326.0,0.00024166,120]
[420716661,1776489158110,194.0,0.00024166,120]
[420716662,1776489164646,303.19639848,0.00024166,120]
[420716663,1776489165307,303.19639848,0.00024166,120]
[420716664,1776489165601,303.19639848,0.00024166,120]
[420716665,1776489165891,303.19639848,0.00024166,120]
[420716666,1776489166216,303.19639848,0.00024166,120]
[420716667,1776489166536,303.19639848,0.00024166,120]
[420716668,1776489166832,303.19639848,0.00024166,120]
[420716669,1776489213304,154.0,0.00024166,120]
[420716670,1776489404909,151.59819922,0.00024158,120]